[Event "WYCC U16 Open 2019"]
[Site "Mumbai"]
[Date "2019.10.07"]
[Round "7.15"]
[White "Raahul V S"]
[Black "Skurniak, Szymon"]
[Result "0-1"]
[ECO "A20"]
[WhiteElo "2262"]
[BlackElo "1997"]
[Annotator "ChessBase"]
[PlyCount "64"]
[EventDate "2019.10.02"]
[EventType "swiss"]
[EventCountry "IND"]
[SourceTitle "playchess.com"]
[Source "ChessBase"]
[SourceQuality "1"]
[TimeControl "40/5400+30:1800+30"]

1. c4 {[%emt 0:00:00]} e5 {[%emt 0:00:00]} 2. g3 {[%emt 0:00:32]} d6 {[%emt 0:00:00]} 3. Bg2 {[%emt 0:00:08]} f5 {[%emt 0:00:00]} 4. Nc3 {[%emt 0:00:28]} Nf6 {[%emt 0:00:00]} 5. e3 {[%emt 0:00:42]} Be7 {[%emt 0:00:24]} 6. Nge2 {[%emt 0:00:40]} O-O {[%emt 0:00:38]} 7. O-O {[%emt 0:00:26]} c6 {[%emt 0:00:16]} 8. d3 {[%emt 0:13:53]} Na6 {[%emt 0:00:29]} 9. f4 {[%emt 0:02:34]} Qe8 {[%emt 0:11:33]} 10. Rb1 {[%emt 0:08:00]} Nc7 {[%emt 0:17:05]} 11. b4 {[%emt 0:06:47]} a6 {[%emt 0:00:50]} 12. a4 {[%emt 0:05:30]} exf4 {[%emt 0:03:25]} 13. exf4 {[%emt 0:05:00]} Qf7 {[%emt 0:07:19]} 14. Qb3 {[%emt 0:10:47]} Re8 {[%emt 0:05:54]} 15. Nd4 {[%emt 0:12:39]} Bd7 {[%emt 0:13:38]} 16. Kh1 {[%emt 0:05:32]} Ng4 {[%emt 0:02:15]} 17. Nc2 {[%emt 0:06:10]} h5 {[%emt 0:02:39]} 18. h4 {[%emt 0:06:52]} Bxh4 {[%emt 0:11:58]} 19. gxh4 {[%emt 0:00:02]} Qf6 20. Rf3 {[%emt 0:01:00]} Qxh4+ {[%emt 0:00:10]} 21. Kg1 {[%emt 0:00:02]} Qh2+ {[%emt 0:00:39]} 22. Kf1 {[%emt 0:00:02]} Qh4 {[%emt 0:00:11]} 23. Kg1 {[%emt 0:01:52]} Qh2+ {[%emt 0:01:08]} 24. Kf1 {[%emt 0:00:01]} Qh4 {[%emt 0:00:01]} 25. Be3 {[%emt 0:04:13]} Nh2+ {[%emt 0:01:16]} 26. Ke2 {[%emt 0:01:12]} Nxf3 {[%emt 0:00:08]} 27. Kxf3 {[%emt 0:00:45]} Ne6 {[%emt 0:04:40]} 28. Ne2 {[%emt 0:04:38]} Ng5+ 29. fxg5 {[%emt 0:00:17]} f4 {[%emt 0:01:28]} 30. c5+ {[%emt 0:01:37]} d5 {[%emt 0:00:18]} 31. Rh1 {[%emt 0:00:06]} Bg4+ {[%emt 0:00:43]} 32. Kxf4 {[%emt 0:00:02]} Bh3+ {[%emt 0:00:21]} 0-1

[Event "WYCC U16 Open 2019"]
[Site "Mumbai"]
[Date "2019.10.07"]
[Round "7.16"]
[White "Nanayakkara, J A K Saranath"]
[Black "Manafov, Vugar"]
[Result "0-1"]
[ECO "D43"]
[WhiteElo "1924"]
[BlackElo "2357"]
[Annotator "ChessBase"]
[PlyCount "80"]
[EventDate "2019.10.02"]
[EventType "swiss"]
[EventCountry "IND"]
[SourceTitle "playchess.com"]
[Source "ChessBase"]
[SourceQuality "1"]
[TimeControl "40/5400+30:1800+30"]

1. d4 Nf6 2. Nf3 d5 3. c4 e6 4. Nc3 c6 5. cxd5 exd5 6. Bg5 Be7 7. Qc2 h6 8. Bf4 Nbd7 9. e3 Nh5 10. Be5 Nxe5 11. dxe5 g6 12. Bd3 Ng7 13. O-O Ne6 14. Rad1 Qc7 15. Bxg6 fxg6 16. Qxg6+ Kf8 17. Qf5+ Kg7 18. Qg4+ Ng5 19. Qg3 Kh7 20. Nxg5+ hxg5 21. Rd4 Bf5 22. Rc1 Qb6 23. Rd2 Qb4 24. Rcd1 Qg4 25. Qxg4 Bxg4 26. f3 Be6 27. Ne2 Bb4 28. Rc2 Bf5 29. Rcc1 Rae8 30. Nd4 Rhf8 31. f4 Bg4 32. Rd3 gxf4 33. Rb3 c5 34. Nc2 a5 35. exf4 Rxf4 36. Rd3 Rxe5 37. a3 c4 38. Rg3 Bc5+ 39. Kh1 Bf2 40. Rc3 Be1 0-1

[Event "WYCC U16 Open 2019"]
[Site "Mumbai"]
[Date "2019.10.09"]
[Round "8.2"]
[White "Makarian, Rudik"]
[Black "Bilych, Olexiy"]
[Result "1-0"]
[ECO "A56"]
[WhiteElo "2386"]
[BlackElo "2281"]
[Annotator "ChessBase"]
[PlyCount "123"]
[EventDate "2019.10.02"]
[EventType "swiss"]
[EventCountry "IND"]
[SourceTitle "playchess.com"]
[Source "ChessBase"]
[SourceQuality "1"]
[TimeControl "40/5400+30:1800+30"]

1. d4 Nf6 2. c4 c5 3. Nf3 g6 4. Nc3 cxd4 5. Nxd4 Bg7 6. g3 O-O 7. Bg2 Nc6 8. O-O Nxd4 9. Qxd4 d6 10. Qd3 Nd7 11. Nd5 Nc5 12. Qa3 Be6 13. Be3 Bxd5 14. Bxd5 Qc7 15. Rab1 a5 16. b3 Rab8 17. Bd2 b6 18. Qc1 Rfc8 19. Rd1 b5 20. cxb5 e6 21. Bc6 Nd7 22. Qa3 Ne5 23. Bxa5 Qa7 24. Bb4 Qxa3 25. Bxa3 Nxc6 26. bxc6 d5 27. Rdc1 Ra8 28. Bd6 Ra6 29. b4 Raxc6 30. Rxc6 Rxc6 31. Bf4 e5 32. Rc1 Rxc1+ 33. Bxc1 Kf8 34. b5 Ke7 35. a4 Kd7 36. Ba3 e4 37. Bc5 Bc3 38. e3 Kc7 39. f3 f5 40. Kf2 h5 41. f4 Kb7 42. Ke2 Ba5 43. Kd1 Bc3 44. Kc2 Be1 45. Kb3 Kc7 46. Bb4 Bf2 47. Bd2 d4 48. exd4 e3 49. Ba5+ Kd7 50. b6 Kc8 51. Kc4 e2 52. Kb5 Kb7 53. Bb4 e1=Q 54. Bxe1 Bxe1 55. a5 h4 56. a6+ Kb8 57. Kc6 hxg3 58. a7+ Ka8 59. Kc7 Ba5 60. hxg3 g5 61. fxg5 f4 62. g6 1-0

[Event "WYCC U16 Open 2019"]
[Site "Mumbai"]
[Date "2019.10.09"]
[Round "8.3"]
[White "Gharibyan, Mamikon"]
[Black "Aronyak Ghosh"]
[Result "1/2-1/2"]
[ECO "D11"]
[WhiteElo "2388"]
[BlackElo "2380"]
[Annotator "ChessBase"]
[PlyCount "95"]
[EventDate "2019.10.02"]
[EventType "swiss"]
[EventCountry "IND"]
[SourceTitle "playchess.com"]
[Source "ChessBase"]
[SourceQuality "1"]
[TimeControl "40/5400+30:1800+30"]

1. d4 {[%emt 0:00:00]} d5 {[%emt 0:00:15]} 2. c4 {[%emt 0:00:29]} c6 {[%emt 0:00:46]} 3. Nf3 {[%emt 0:00:37]} Nf6 {[%emt 0:00:29]} 4. e3 {[%emt 0:00:35]} Bg4 {[%emt 0:00:28]} 5. Nc3 {[%emt 0:00:47]} e6 {[%emt 0:00:19]} 6. h3 {[%emt 0:00:15]} Bxf3 {[%emt 0:00:21]} 7. Qxf3 {[%emt 0:00:07]} Nbd7 {[%emt 0:00:07]} 8. Qd1 {[%emt 0:01:47]} Bd6 {[%emt 0:14:10]} 9. Bd3 {[%emt 0:04:04]} O-O {[%emt 0:02:52]} 10. O-O {[%emt 0:00:06]} Qe7 {[%emt 0:04:15]} 11. Qb3 {[%emt 0:14:13]} dxc4 {[%emt 0:10:04]} 12. Bxc4 {[%emt 0:00:21]} Nb6 {[%emt 0:00:13]} 13. Be2 {[%emt 0:00:41]} Rad8 {[%emt 0:07:24]} 14. Rd1 {[%emt 0:04:57]} e5 {[%emt 0:03:41]} 15. dxe5 {[%emt 0:01:03]} Qxe5 {[%emt 0:00:23]} 16. g3 {[%emt 0:01:02]} Qe7 {[%emt 0:07:24]} 17. Kg2 {[%emt 0:02:16]} Ne4 {[%emt 0:05:40]} 18. Qc2 {[%emt 0:05:24]} Nxc3 {[%emt 0:01:51]} 19. bxc3 {[%emt 0:00:35]} Bc5 {[%emt 0:04:02]} 20. Bd2 {[%emt 0:04:07]} Rd7 {[%emt 0:02:15]} 21. c4 {[%emt 0:08:59]} Rfd8 {[%emt 0:03:22]} 22. a4 {[%emt 0:06:12]} Rd6 {[%emt 0:02:33]} 23. a5 {[%emt 0:03:51]} Nd7 {[%emt 0:03:41]} 24. a6 {[%emt 0:02:16]} b6 {[%emt 0:02:54]} 25. Bc3 {[%emt 0:01:26]} Nb8 {[%emt 0:05:56]} 26. Rxd6 {[%emt 0:02:49]} Bxd6 {[%emt 0:00:09]} 27. Bf3 {[%emt 0:10:02]} Bb4 {[%emt 0:06:21]} 28. Bd4 {[%emt 0:03:33]} c5 {[%emt 0:01:27]} 29. Bc3 {[%emt 0:04:38]} Bxc3 {[%emt 0:00:39]} 30. Qxc3 {[%emt 0:00:01]} Nd7 {[%emt 0:00:37]} 31. Rd1 {[%emt 0:01:21]} Nf6 {[%emt 0:02:32]} 32. Rxd8+ {[%emt 0:01:18]} Qxd8 {[%emt 0:00:01]} 33. Qe5 {[%emt 0:00:24]} h6 {[%emt 0:01:01]} 34. g4 {[%emt 0:04:06]} Kf8 {[%emt 0:00:39]} 35. Bc6 {[%emt 0:02:06]} Ng8 {[%emt 0:01:21]} 36. Bf3 {[%emt 0:06:34]} Ne7 {[%emt 0:01:14]} 37. Be4 {[%emt 0:02:51]} Qc8 {[%emt 0:01:07]} 38. Qd6 {[%emt 0:00:49]} Ke8 {[%emt 0:00:05]} 39. Bb7 {[%emt 0:00:54]} Qd8 {[%emt 0:00:01]} 40. Qe5 {[%emt 0:01:10]} Kf8 {[%emt 0:00:17]} 41. Kh2 {[%emt 0:09:32]} Ng6 {[%emt 0:04:10]} 42. Qg3 {[%emt 0:01:19]} Ke7 {[%emt 0:02:21]} 43. Bd5 {[%emt 0:07:17]} Qd6 {[%emt 0:01:31]} 44. f4 {[%emt 0:01:37]} b5 {[%emt 0:01:54]} 45. Qf3 {[%emt 0:00:58]} b4 {[%emt 0:00:41]} 46. Qe4+ {[%emt 0:01:20]} Kd8 {[%emt 0:02:53]} 47. Bxf7 {[%emt 0:03:06]} Qd2+ {[%emt 0:02:18]} 48. Kh1 1/2-1/2

[Event "WYCC U16 Open 2019"]
[Site "Mumbai"]
[Date "2019.10.09"]
[Round "8.4"]
[White "Pogosyan, Stefan"]
[Black "Raja Rithvik R"]
[Result "1/2-1/2"]
[ECO "E17"]
[WhiteElo "2364"]
[BlackElo "2369"]
[Annotator "ChessBase"]
[PlyCount "90"]
[EventDate "2019.10.02"]
[EventType "swiss"]
[EventCountry "IND"]
[SourceTitle "playchess.com"]
[Source "ChessBase"]
[SourceQuality "1"]
[TimeControl "40/5400+30:1800+30"]

1. d4 Nf6 2. c4 e6 3. Nf3 b6 4. g3 Bb7 5. Bg2 Be7 6. O-O O-O 7. Re1 Na6 8. Nc3 Ne4 9. Ng5 Nxc3 10. Qc2 Bxg5 11. Bxb7 Bxc1 12. Qxc1 Rb8 13. Bxa6 Ne4 14. f3 Nd6 15. e4 c6 16. Qc3 Ne8 17. c5 bxc5 18. dxc5 d5 19. exd5 exd5 20. Bd3 Nf6 21. Qd4 a5 22. a3 Nd7 23. b4 Qf6 24. Qxf6 gxf6 25. Rab1 axb4 26. axb4 Rb7 27. f4 Rfb8 28. b5 Nxc5 29. bxc6 Rxb1 30. Rxb1 Rc8 31. Bb5 Ne4 32. Rc1 Rc7 33. Kg2 Kf8 34. Kf3 Ke7 35. Kg4 f5+ 36. Kf3 Kd6 37. Ke3 Nc5 38. Rc2 Re7+ 39. Kd4 Re4+ 40. Kc3 Kc7 41. Rd2 Kb6 42. Rb2 Kc7 43. Rd2 Kb6 44. Rb2 Kc7 45. Rd2 Kb6 1/2-1/2

[Event "WYCC U16 Open 2019"]
[Site "Mumbai"]
[Date "2019.10.09"]
[Round "8.5"]
[White "Moksh Amit Doshi"]
[Black "Kushagra Mohan"]
[Result "0-1"]
[ECO "B09"]
[WhiteElo "2328"]
[BlackElo "2309"]
[Annotator "ChessBase"]
[PlyCount "86"]
[EventDate "2019.10.02"]
[EventType "swiss"]
[EventCountry "IND"]
[SourceTitle "playchess.com"]
[Source "ChessBase"]
[SourceQuality "1"]
[TimeControl "40/5400+30:1800+30"]

1. e4 {[%emt 0:03:26]} d6 {[%emt 0:00:00]} 2. d4 {[%emt 0:00:10]} Nf6 {[%emt 0:00:00]} 3. Nc3 {[%emt 0:00:10]} g6 {[%emt 0:00:00]} 4. f4 {[%emt 0:00:10]} Bg7 {[%emt 0:00:00]} 5. Nf3 {[%emt 0:00:11]} c5 {[%emt 0:00:03]} 6. Bb5+ {[%emt 0:00:11]} Bd7 {[%emt 0:00:01]} 7. e5 {[%emt 0:00:15]} Ng4 {[%emt 0:00:01]} 8. Bxd7+ {[%emt 0:00:10]} Qxd7 {[%emt 0:00:27]} 9. d5 {[%emt 0:00:17]} dxe5 {[%emt 0:02:55]} 10. h3 {[%emt 0:00:07]} e4 {[%emt 0:00:14]} 11. hxg4 {[%emt 0:00:07]} exf3 {[%emt 0:00:03]} 12. Qxf3 {[%emt 0:00:10]} Na6 {[%emt 0:00:51]} 13. Bd2 {[%emt 0:00:07]} O-O-O {[%emt 0:01:02]} 14. O-O-O {[%emt 0:00:09]} Nc7 {[%emt 0:09:48]} 15. Be1 {[%emt 0:00:16]} Bd4 {[%emt 0:05:51]} 16. Bf2 {[%emt 0:01:41]} Bxf2 {[%emt 0:03:44]} 17. Qxf2 {[%emt 0:00:09]} b6 {[%emt 0:00:07]} 18. Qf3 {[%emt 0:08:28]} Kb8 {[%emt 0:01:56]} 19. g5 {[%emt 0:03:10]} Ne8 {[%emt 0:09:09]} 20. Rh2 {[%emt 0:06:11]} Nd6 {[%emt 0:05:42]} 21. Rdh1 {[%emt 0:04:35]} Nf5 {[%emt 0:04:55]} 22. Rxh7 {[%emt 0:20:42]} Rxh7 {[%emt 0:00:08]} 23. Rxh7 {[%emt 0:00:07]} e6 {[%emt 0:02:46]} 24. Qe2 {[%emt 0:08:40]} exd5 {[%emt 0:02:16]} 25. Qe5+ {[%emt 0:02:51]} Ka8 {[%emt 0:01:28]} 26. Qf6 {[%emt 0:17:02]} Nd6 {[%emt 0:09:02]} 27. Rh8 {[%emt 0:06:23]} Rxh8 {[%emt 0:00:27]} 28. Qxh8+ {[%emt 0:00:09]} Kb7 {[%emt 0:00:31]} 29. Qe5 {[%emt 0:02:46]} d4 {[%emt 0:00:31]} 30. Nd5 {[%emt 0:00:22]} Qe8 {[%emt 0:09:32]} 31. Ne7 {[%emt 0:03:23]} Kc7 {[%emt 0:02:26]} 32. b3 {[%emt 0:02:14]} Kd7 {[%emt 0:01:50]} 33. Nd5 {[%emt 0:01:53]} Qxe5 {[%emt 0:00:25]} 34. fxe5 {[%emt 0:00:05]} Ne4 {[%emt 0:00:22]} 35. Nf4 {[%emt 0:01:53]} Nxg5 {[%emt 0:00:29]} 36. Kd2 {[%emt 0:00:37]} Kc6 {[%emt 0:00:24]} 37. Kd3 {[%emt 0:01:58]} Ne6 {[%emt 0:01:14]} 38. Ne2 {[%emt 0:03:47]} Kd5 {[%emt 0:00:05]} 39. c3 {[%emt 0:00:30]} Kxe5 {[%emt 0:00:29]} 40. cxd4+ {[%emt 0:00:09]} cxd4 {[%emt 0:00:08]} 41. g3 {[%emt 0:30:38]} g5 {[%emt 0:30:52]} 42. b4 {[%emt 0:00:09]} b5 {[%emt 0:00:06]} 43. a3 {[%emt 0:00:12]} f5 {[%emt 0:00:24] Kxd4+} 0-1

[Event "WYCC U16 Open 2019"]
[Site "Mumbai"]
[Date "2019.10.09"]
[Round "8.6"]
[White "Kacharava, Nikolozi"]
[Black "Mis, Mieszko"]
[Result "1-0"]
[ECO "B17"]
[WhiteElo "2428"]
[BlackElo "2345"]
[Annotator "ChessBase"]
[PlyCount "106"]
[EventDate "2019.10.02"]
[EventType "swiss"]
[EventCountry "IND"]
[SourceTitle "playchess.com"]
[Source "ChessBase"]
[SourceQuality "1"]
[TimeControl "40/5400+30:1800+30"]

1. e4 c6 2. d4 d5 3. Nd2 dxe4 4. Nxe4 Nd7 5. Ng5 Ngf6 6. Bd3 e6 7. N1f3 Bd6 8. Qe2 h6 9. Ne4 Nxe4 10. Qxe4 Nf6 11. Qe2 b6 12. Bd2 Bb7 13. O-O-O Qc7 14. Rhe1 O-O 15. Ne5 c5 16. g4 cxd4 17. f4 Rac8 18. Kb1 Rfd8 19. h4 Nd7 20. Nxf7 Kxf7 21. Qxe6+ Kf8 22. Qf5+ Nf6 23. g5 Qf7 24. gxf6 Qxf6 25. Qxf6+ gxf6 26. f5 Kf7 27. Be2 Kg7 28. Rg1+ Kh7 29. Rg6 Bf8 30. Rxf6 Be4 31. Bd3 Bxd3 32. cxd3 Rd7 33. Re1 Bg7 34. Rfe6 Rf8 35. Re7 Rxe7 36. Rxe7 Rxf5 37. Rxa7 Rh5 38. Be1 b5 39. Bf2 Kg6 40. Rd7 Bf6 41. Rd6 Kf7 42. Kc2 Ke7 43. Rb6 Rf5 44. Be1 h5 45. b3 Kd7 46. a4 bxa4 47. bxa4 Rf4 48. a5 Bxh4 49. a6 Kc7 50. Rb7+ Kc6 51. Bxh4 Rxh4 52. Rb8 Rh2+ 53. Kb3 Kd5 1-0

[Event "WYCC U16 Open 2019"]
[Site "Mumbai"]
[Date "2019.10.09"]
[Round "8.7"]
[White "Skurniak, Szymon"]
[Black "Avila Pavas, Santiago"]
[Result "0-1"]
[ECO "B40"]
[WhiteElo "1997"]
[BlackElo "2406"]
[Annotator "ChessBase"]
[PlyCount "94"]
[EventDate "2019.10.02"]
[EventType "swiss"]
[EventCountry "IND"]
[SourceTitle "playchess.com"]
[Source "ChessBase"]
[SourceQuality "1"]
[TimeControl "40/5400+30:1800+30"]

1. e4 c5 2. Nf3 e6 3. b3 b6 4. c4 Bb7 5. Nc3 Nc6 6. g3 g6 7. Bg2 Bg7 8. O-O Nge7 9. Bb2 O-O 10. d3 f5 11. Qd2 d6 12. Ng5 Qd7 13. exf5 Rxf5 14. Rae1 Nd4 15. f4 Bxg2 16. Qxg2 Raf8 17. Nb5 Nec6 18. Nxd4 Bxd4+ 19. Bxd4 Nxd4 20. Nf3 Nc6 21. Nh4 R5f6 22. Nf3 h6 23. Qe2 e5 24. fxe5 dxe5 25. Kg2 Qd6 26. Qe4 Kg7 27. Re3 R8f7 28. Rfe1 Nd4 29. Nxe5 Re7 30. Rf1 Rxf1 31. Kxf1 Nc6 32. Qxc6 Qxc6 33. Nxc6 Rxe3 34. Nxa7 Rxd3 35. Nc8 Rf3+ 36. Ke2 Rf6 37. Ke3 Re6+ 38. Kd3 Kf6 39. a4 Kf5 40. h3 Ke5 41. Ke3 g5 42. h4 g4 43. Kd3 Rf6 44. Kc3 Ke4 45. Ne7 Rf3+ 46. Kc2 Rxg3 47. h5 Rg2+ 0-1

[Event "WYCC U16 Open 2019"]
[Site "Mumbai"]
[Date "2019.10.09"]
[Round "8.8"]
[White "Hilwerda, Jonas"]
[Black "Daghli, Arash"]
[Result "0-1"]
[ECO "B30"]
[WhiteElo "2229"]
[BlackElo "2387"]
[Annotator "ChessBase"]
[PlyCount "64"]
[EventDate "2019.10.02"]
[EventType "swiss"]
[EventCountry "IND"]
[SourceTitle "playchess.com"]
[Source "ChessBase"]
[SourceQuality "1"]
[TimeControl "40/5400+30:1800+30"]

1. e4 c5 2. Nf3 Nc6 3. Bb5 Nf6 4. Nc3 Qc7 5. O-O Nd4 6. Re1 a6 7. Bf1 Ng4 8. e5 Nxf3+ 9. Qxf3 Nxe5 10. Qe4 d6 11. Nd5 Qc6 12. f4 e6 13. c4 exd5 14. cxd5 Qc7 15. b4 f5 16. Qe2 Be7 17. fxe5 O-O 18. d4 cxd4 19. e6 b5 20. Bb2 Bb7 21. Qd3 Bxd5 22. Bxd4 Be4 23. Rxe4 fxe4 24. Qxe4 d5 25. Qg4 Bf6 26. Bxf6 Rxf6 27. Re1 Re8 28. Qh5 Qc6 29. Bd3 g6 30. Qh6 Rfxe6 31. Rf1 Qb6+ 32. Rf2 Rf6 0-1

[Event "WYCC U16 Open 2019"]
[Site "Mumbai"]
[Date "2019.10.09"]
[Round "8.9"]
[White "Sankalp Gupta"]
[Black "Ammar, Sedrani"]
[Result "1-0"]
[ECO "A06"]
[WhiteElo "2369"]
[BlackElo "2053"]
[Annotator "ChessBase"]
[PlyCount "83"]
[EventDate "2019.10.02"]
[EventType "swiss"]
[EventCountry "IND"]
[SourceTitle "playchess.com"]
[Source "ChessBase"]
[SourceQuality "1"]
[TimeControl "40/5400+30:1800+30"]

1. Nf3 d5 2. e3 Nf6 3. c4 e6 4. Nc3 c6 5. Qc2 Nbd7 6. b3 b6 7. Bb2 Bb7 8. Be2 Rc8 9. O-O Be7 10. Rfd1 O-O 11. Rac1 Qc7 12. d4 Qb8 13. h3 Rfd8 14. Qb1 h6 15. Kh1 Qa8 16. Qa1 Bf8 17. a4 c5 18. a5 cxd4 19. exd4 dxc4 20. a6 Bc6 21. bxc4 Bb4 22. Kg1 Bxc3 23. Bxc3 Qb8 24. Bb4 Re8 25. Qa3 Qa8 26. Ne1 Nf8 27. Bf1 Ng6 28. Nc2 Rcd8 29. Ne3 Rd7 30. Bc3 Ne4 31. Bb2 Red8 32. d5 exd5 33. cxd5 Bxd5 34. Bb5 Rd6 35. Nf5 Nf4 36. Nxd6 Nxd6 37. Bf1 Nf5 38. Qb4 Nxg2 39. Bxg2 Bxg2 40. Rxd8+ Qxd8 41. Kxg2 Qd5+ 42. Kg1 1-0

[Event "WYCC U16 Open 2019"]
[Site "Mumbai"]
[Date "2019.10.09"]
[Round "8.10"]
[White "Stork, Oliver"]
[Black "Harshavardhan G B"]
[Result "0-1"]
[ECO "A45"]
[WhiteElo "2314"]
[BlackElo "2362"]
[Annotator "ChessBase"]
[PlyCount "96"]
[EventDate "2019.10.02"]
[EventType "swiss"]
[EventCountry "IND"]
[SourceTitle "playchess.com"]
[Source "ChessBase"]
[SourceQuality "1"]
[TimeControl "40/5400+30:1800+30"]

1. d4 {[%emt 0:01:35]} Nf6 {[%emt 0:00:00]} 2. Bf4 {[%emt 0:00:09]} d5 {[%emt 0:01:51]} 3. e3 {[%emt 0:00:08]} c5 {[%emt 0:00:13]} 4. c3 {[%emt 0:00:07]} Nc6 {[%emt 0:00:06]} 5. Nd2 {[%emt 0:00:05]} Qb6 {[%emt 0:01:11]} 6. Qb3 {[%emt 0:00:14]} Qxb3 {[%emt 0:02:09]} 7. axb3 {[%emt 0:00:12]} e6 {[%emt 0:06:58]} 8. Ngf3 {[%emt 0:09:57]} Bd7 {[%emt 0:05:07]} 9. Bb5 {[%emt 0:11:11]} Nh5 {[%emt 0:05:51]} 10. dxc5 {[%emt 0:16:17]} Nxf4 {[%emt 0:00:25]} 11. exf4 {[%emt 0:00:04]} Bxc5 {[%emt 0:00:14]} 12. O-O {[%emt 0:00:09]} O-O {[%emt 0:05:43]} 13. b4 {[%emt 0:01:23]} Bd6 {[%emt 0:00:31]} 14. g3 {[%emt 0:00:06]} Rfd8 {[%emt 0:02:09]} 15. Nb3 {[%emt 0:05:53]} Be7 {[%emt 0:04:03]} 16. Be2 {[%emt 0:14:34]} a6 {[%emt 0:22:32]} 17. Ne5 {[%emt 0:08:09]} Nxe5 {[%emt 0:08:53]} 18. fxe5 {[%emt 0:00:02]} g5 {[%emt 0:03:33]} 19. Nc5 {[%emt 0:12:01]} Bc6 {[%emt 0:01:35]} 20. f4 {[%emt 0:03:54]} a5 21. Bh5 {[%emt 0:08:46]} axb4 {[%emt 0:16:55]} 22. cxb4 {[%emt 0:00:05]} Rxa1 {[%emt 0:00:28]} 23. Rxa1 {[%emt 0:00:05]} gxf4 {[%emt 0:00:36]} 24. Rf1 {[%emt 0:01:19]} b6 {[%emt 0:00:43]} 25. Nb3 {[%emt 0:00:53]} f5 {[%emt 0:03:41]} 26. Nd4 {[%emt 0:03:40]} Bd7 {[%emt 0:00:11]} 27. Rxf4 {[%emt 0:00:32]} Rc8 {[%emt 0:01:07]} 28. g4 {[%emt 0:01:34]} Bg5 {[%emt 0:00:47]} 29. Rf3 {[%emt 0:00:03]} Rc4 {[%emt 0:02:39]} 30. Nxe6 {[%emt 0:01:13]} Bxe6 {[%emt 0:00:05]} 31. gxf5 {[%emt 0:00:04]} Bf7 {[%emt 0:00:46]} 32. Rg3 {[%emt 0:00:05]} h6 {[%emt 0:00:04]} 33. Be2 {[%emt 0:00:47]} Re4 {[%emt 0:00:31]} 34. e6 {[%emt 0:00:27]} Rxe2 {[%emt 0:01:21]} 35. h4 {[%emt 0:00:03]} Be8 {[%emt 0:00:35]} 36. hxg5 {[%emt 0:00:06]} hxg5 {[%emt 0:00:03]} 37. Rxg5+ {[%emt 0:00:38]} Kf8 {[%emt 0:00:05]} 38. Rg3 {[%emt 0:01:11]} Re5 {[%emt 0:00:14]} 39. Kf2 {[%emt 0:01:13]} Rxf5+ {[%emt 0:00:09]} 40. Ke3 {[%emt 0:00:06]} Ke7 {[%emt 0:00:06]} 41. Rg7+ {[%emt 0:30:46]} Kxe6 {[%emt 0:30:07]} 42. Rb7 {[%emt 0:00:08]} b5 {[%emt 0:00:04]} 43. Kd4 {[%emt 0:00:31]} Rf4+ {[%emt 0:00:06]} 44. Kc3 {[%emt 0:00:26]} Rc4+ {[%emt 0:00:10]} 45. Kb3 {[%emt 0:00:04]} d4 {[%emt 0:00:08]} 46. Rg7 {[%emt 0:01:24]} Rc1 {[%emt 0:00:23]} 47. Rg4 {[%emt 0:00:30]} Bf7 {[%emt 0:00:24]} 48. Rxd4 {[%emt 0:00:00]} Ke5+ {[%emt 0:00:00]} 0-1

[Event "WYCC U16 Open 2019"]
[Site "Mumbai"]
[Date "2019.10.09"]
[Round "8.11"]
[White "Turgut, Aydin"]
[Black "Wachinger, Nikolas"]
[Result "1/2-1/2"]
[ECO "B90"]
[WhiteElo "2281"]
[BlackElo "2297"]
[Annotator "ChessBase"]
[PlyCount "57"]
[EventDate "2019.10.02"]
[EventType "swiss"]
[EventCountry "IND"]
[SourceTitle "playchess.com"]
[Source "ChessBase"]
[SourceQuality "1"]
[TimeControl "40/5400+30:1800+30"]

1. e4 c5 2. Nf3 d6 3. d4 cxd4 4. Nxd4 Nf6 5. Nc3 a6 6. h3 e6 7. g4 Nfd7 8. g5 b5 9. a3 Bb7 10. h4 Be7 11. Be3 Nb6 12. Bh3 Na4 13. Nxa4 bxa4 14. Bg2 Qa5+ 15. Bd2 Qb6 16. c3 O-O 17. O-O Qa5 18. c4 Qe5 19. Ne2 Bc6 20. Qc2 Bd7 21. Bb4 Rc8 22. Rac1 g6 23. f4 Qg7 24. e5 Nc6 25. exd6 Bd8 26. c5 Rab8 27. Bc3 Qf8 28. Qxa4 Nb4 29. Qxd7 1/2-1/2

[Event "WYCC U16 Open 2019"]
[Site "Mumbai"]
[Date "2019.10.09"]
[Round "8.12"]
[White "Alvarez Angel, Nelson Eduardo"]
[Black "Nogerbek, Kazybek"]
[Result "0-1"]
[ECO "E77"]
[WhiteElo "1974"]
[BlackElo "2387"]
[Annotator "ChessBase"]
[PlyCount "112"]
[EventDate "2019.10.02"]
[EventType "swiss"]
[EventCountry "IND"]
[SourceTitle "playchess.com"]
[Source "ChessBase"]
[SourceQuality "1"]
[TimeControl "40/5400+30:1800+30"]

1. d4 Nf6 2. c4 g6 3. Nc3 Bg7 4. e4 d6 5. f4 O-O 6. Nf3 c5 7. d5 e6 8. Be2 exd5 9. cxd5 Bg4 10. O-O Nbd7 11. h3 Bxf3 12. Bxf3 Re8 13. Re1 c4 14. Be3 Qa5 15. Bd4 Nc5 16. b4 cxb3 17. e5 b2 18. Rb1 Nfd7 19. e6 fxe6 20. dxe6 Nxe6 21. Bxg7 Kxg7 22. Qxd6 Qc5+ 23. Qxc5 Ndxc5 24. f5 Nd4 25. Rxe8 Rxe8 26. Rxb2 Re3 27. Nb5 Nxf3+ 28. gxf3 gxf5 29. Kg2 Nd3 30. Rd2 f4 31. Nd6 Ne1+ 32. Kf2 Nxf3 33. Rb2 Ne5 34. Nf5+ Kg6 35. Nxe3 Nd3+ 36. Kf3 Nxb2 37. Kxf4 Nd3+ 38. Kg3 b5 39. a3 a5 40. Nd5 Ne5 41. Nc3 b4 42. axb4 axb4 43. Nd1 Kg5 44. Ne3 b3 45. Nd1 h5 46. h4+ Kf5 47. Nb2 Ke4 48. Na4 Nd3 49. Nc3+ Kd4 50. Nd1 Ke4 51. Nc3+ Ke3 52. Nb1 Nf4 53. Na3 Ng6 54. Nb1 Kd3 55. Kf3 b2 56. Na3 Ne5+ 0-1